bitfinex-derivatives/quotes_ETHF0:USTF0_20250911
["timestamp","ask_amount","ask_price","bid_price","bid_amount"]
[1757600827009,0.7795,4411.9,4411.1,0.3268]
[1757600827412,1.00618,4411.9,4411.1,0.3268]
[1757600827711,0.7795,4411.9,4411.1,0.3268]
[1757600829714,0.7795,4411.9,4411.2,0.31526042]
[1757600829907,0.7795,4411.9,4411.3,0.31526042]
[1757600830212,0.8983,4411.5,4410.3,0.3268]
[1757600830411,0.4503,4410.4,4410.3,0.5447]
[1757600830614,0.2294,4409.6,4409.5,0.6841]
[1757600830804,0.4503,4409.6,4409.5,0.6841]
[1757600831411,0.4503,4409.6,4409.5,0.925]
[1757600831601,0.205,4409.9,4409.8,0.4588]
[1757600831807,0.205,4409.9,4409.8,0.7856]
[1757600832016,0.4344,4409.9,4409.8,0.7856]
[1757600832216,0.4503,4409.7,4409.6,0.3268]
[1757600832513,0.4503,4409.7,4409.6,0.5447]
[1757600833113,0.6272,4409.2,4409.0,0.1394]
[1757600833315,0.2294,4408.7,4408.6,0.7856]
[1757600833523,0.6883,4409.1,4409.0,0.6841]
[1757600833813,0.6883,4409.1,4408.5,0.1394]
[1757600834012,0.6883,4409.1,4408.6,0.3268]
[1757600834209,0.6883,4409.1,4408.5,0.1394]
[1757600834406,0.238,4409.1,4408.6,0.3268]
[1757600834710,0.1769,4408.9,4408.0,0.3268]
[1757600835104,0.1188,4409.0,4407.1,40.8]
[1757600835409,0.1188,4409.0,4407.0,0.1394]
[1757600835410,0.1769,4408.9,4407.6,0.3268]
[1757600835607,0.22685,4408.9,4407.6,0.3268]
[1757600835809,0.1188,4409.0,4407.6,0.3268]
[1757600835810,0.22685,4408.8,4407.6,0.3268]
[1757600836005,0.1769,4408.9,4407.6,0.3268]
[1757600836313,0.1769,4408.7,4407.6,0.3268]
[1757600836816,0.22685,4408.6,4407.6,0.3268]
[1757600837116,0.1769,4408.8,4407.6,0.3268]
[1757600837412,0.1769,4408.8,4407.1,0.3268]
[1757600837612,0.1769,4408.5,4407.1,0.3268]
[1757600837813,0.1769,4408.8,4407.1,0.3268]
[1757600838009,0.22686,4408.9,4407.1,0.3268]
[1757600838208,0.1769,4408.6,4407.1,0.3268]
[1757600838415,0.1769,4408.7,4407.1,0.3268]
[1757600838610,0.1188,4409.0,4407.1,0.3268]
[1757600838811,0.28186,4408.9,4407.1,0.3268]
[1757600839009,0.1769,4408.8,4407.1,0.3268]
[1757600839215,0.1769,4408.7,4407.1,0.3268]
[1757600839409,0.1769,4408.6,4407.1,0.3268]
[1757600839605,0.055,4408.9,4407.1,0.3268]
[1757600839813,0.1769,4408.7,4407.1,0.3268]
[1757600840010,0.22686,4408.8,4406.6,0.3268]
[1757600840213,0.1769,4408.6,4406.1,0.3268]
[1757600840412,0.55499353,4408.5,4406.1,0.3268]
[1757600840614,0.55499353,4408.4,4406.1,0.3268]
[1757600840816,0.55499353,4408.3,4406.1,0.3268]
[1757600841021,0.1769,4407.9,4406.1,0.3268]
[1757600841221,0.1769,4407.7,4406.1,0.3268]
[1757600841521,0.142,4407.8,4406.1,0.3268]
[1757600841823,0.5541415,4407.7,4406.1,0.3268]
[1757600842014,0.238,4407.6,4406.1,0.3268]
[1757600842219,0.1769,4407.7,4406.1,0.3268]
[1757600842421,0.238,4407.6,4406.1,0.3268]
[1757600842820,0.1769,4407.5,4406.1,0.3268]
[1757600843518,0.238,4407.4,4406.1,0.3268]
[1757600843724,0.1769,4407.2,4406.1,0.3268]
[1757600845420,0.4503,4406.2,4406.1,0.5447]
[1757600845621,0.6883,4406.2,4406.1,0.5447]
[1757600846829,0.1769,4406.1,4405.5,0.4662]
[1757600847626,0.1675,4406.0,4405.0,0.4749]
[1757600848519,0.1675,4406.0,4405.1,0.3355]
[1757600849426,0.34770488,4406.0,4405.1,0.3355]
[1757600849828,0.18020488,4406.0,4405.1,0.3355]
[1757600850127,0.238,4405.9,4405.6,0.3355]
[1757600851128,32.86340418,4406.4,4405.6,0.3355]
[1757600851321,0.238,4406.3,4406.0,0.1291]
[1757600852820,0.462,4406.3,4406.2,0.2248]
[1757600853123,0.462,4406.3,4405.5,0.1291]
[1757600853124,0.4569,4405.7,4405.6,0.3355]
[1757600853318,0.4569,4405.7,4405.0,0.1394]
[1757600853319,0.8624,4405.7,4405.0,0.1394]
[1757600853927,0.8624,4405.7,4405.6,0.2248]
[1757600854315,0.462,4405.7,4405.6,0.4506]
[1757600854523,0.238,4405.7,4405.6,0.4506]
[1757600855428,0.238,4405.7,4405.6,0.7861]
[1757600856125,33.0317,4406.4,4405.7,0.3355]
[1757600856322,1.01230565,4406.3,4406.2,0.5603]
[1757600856520,1.01230565,4406.3,4406.2,0.7861]
[1757600856521,0.55540565,4406.3,4406.2,0.7861]
[1757600856721,0.192,4406.3,4406.2,0.7861]
[1757600857121,0.192,4406.3,4406.2,0.3355]
[1757600857430,0.192,4406.3,4406.2,0.64490531]
[1757600857822,32.695,4407.0,4406.6,0.3355]
[1757600858132,0.79418115,4406.9,4406.6,0.3355]
[1757600858427,0.3487,4406.7,4406.1,0.3355]
[1757600858634,0.55618115,4406.6,4406.5,0.1291]
[1757600858822,0.55618115,4406.8,4406.5,0.43922916]
[1757600859130,0.3487,4406.7,4406.0,0.1291]
[1757600859318,0.55618115,4406.6,4406.2,0.3355]
[1757600859519,0.90488115,4406.5,4406.3,0.64563366]
[1757600859728,0.3487,4406.5,4406.4,0.31013366]
[1757600859929,0.238,4406.5,4406.4,0.64563366]
[1757600860330,0.79560062,4406.5,4406.4,0.64563366]
[1757600860525,0.55760062,4406.5,4406.4,0.64563366]
[1757600860725,0.55890206,4406.7,4406.6,0.3355]
[1757600861029,0.79690206,4406.7,4406.6,0.64563366]
[1757600862931,2.00474871,4406.7,4406.1,0.3355]
[1757600863126,1.20784665,4406.5,4406.1,0.3355]
[1757600864133,1.20784665,4406.3,4406.1,0.3355]
[1757600864332,0.55890206,4406.2,4406.1,0.3355]
[1757600864538,0.238,4406.2,4406.1,0.3355]
[1757600864735,0.79690206,4406.2,4406.1,0.3355]
[1757600864936,33.0437,4407.0,4406.1,0.3355]
[1757600864937,1.20784665,4406.5,4406.2,0.3355]
[1757600865144,1.20784665,4406.6,4406.5,0.0786]
[1757600865333,1.20784665,4406.6,4406.5,0.8647]
[1757600865334,0.238,4406.6,4406.5,0.8647]
[1757600865638,0.238,4406.6,4406.5,5.09163]
[1757600865832,0.238,4406.6,4406.5,0.8647]
[1757600866031,0.8107,4406.6,4406.5,0.7861]
[1757600866343,1.0436,4406.6,4406.5,0.4506]
[1757600867033,0.8107,4406.6,4406.5,0.7861]
[1757600867630,0.8107,4406.6,4406.5,0.4506]
[1757600867839,1.0436,4406.6,4406.5,0.4506]
[1757600868039,0.238,4406.6,4406.5,0.7861]
[1757600868337,0.4889,4406.5,4405.6,0.3355]
[1757600868530,0.3487,4404.9,4403.5,1.95451278]
[1757600868731,0.3487,4404.9,4403.5,0.53775]
[1757600868937,0.238,4405.1,4403.6,41.02705999]
[1757600869238,0.123,4405.3,4403.6,45.02705999]
[1757600869434,0.104,4405.4,4404.0,0.4086]
[1757600869751,0.3487,4405.3,4403.7,0.22704]
[1757600869942,0.3487,4405.3,4403.8,0.22704]
[1757600870139,0.3487,4405.3,4403.7,0.81501253]
[1757600870334,0.3487,4405.3,4403.7,0.40638253]
[1757600870534,0.3487,4405.3,4403.8,0.22704]
[1757600870935,0.3487,4405.3,4403.9,0.22704]
[1757600871135,0.3487,4405.3,4403.9,0.40861]
[1757600871332,0.3487,4405.3,4404.0,0.40859]
[1757600871536,0.3487,4405.3,4404.1,0.40859]
[1757600871736,0.1402,4405.5,4403.7,0.22704]
[1757600871938,0.1402,4405.5,4403.8,0.22704]
[1757600872139,0.3487,4405.4,4404.0,0.4086]
[1757600872640,0.3487,4405.4,4403.6,41.21920879]
[1757600872641,0.3487,4405.4,4404.4,0.40856]
[1757600872841,0.3487,4405.4,4403.8,1.02154]
[1757600872842,1.2182843,4406.7,4405.6,2.273]
[1757600873138,0.1402,4407.5,4407.3,0.40829]
[1757600873336,0.3487,4407.9,4406.5,1.02092]
[1757600873337,0.1402,4408.0,4407.4,0.64628]
[1757600873547,0.1402,4408.0,4407.5,0.238]
[1757600873744,0.3487,4407.9,4407.0,1.62757885]
[1757600873944,0.3487,4407.9,4407.7,1.62757885]
[1757600874138,0.3487,4407.9,4407.6,40.8]
[1757600874447,0.3487,4407.9,4407.6,42.64171695]
[1757600874838,0.3487,4407.9,4407.7,0.29364809]
[1757600875039,0.3487,4407.9,4407.8,0.29364809]
[1757600881049,0.3487,4407.9,4407.8,1.5064744]
[1757600882842,0.3487,4407.9,4407.8,0.29364809]
[1757600883045,0.3487,4407.9,4407.8,4.29364809]
[1757600883251,0.1402,4409.0,4408.1,0.40822]
[1757600883447,0.1402,4409.0,4408.3,1.21203875]
[1757600883648,0.1402,4409.0,4408.4,0.29364809]
[1757600883852,0.1402,4409.0,4408.4,0.53164809]
[1757600884849,0.1402,4409.0,4408.4,41.33164809]
[1757600885353,0.4841,4408.5,4408.4,41.33164809]
[1757600886154,0.4841,4408.5,4408.4,45.33164809]
[1757600886345,0.1402,4409.0,4408.5,0.40818]
[1757600886346,1e-08,4409.0,4408.5,0.40818]
[1757600886546,1e-08,4409.0,4408.9,1.21149984]
[1757600886749,1e-08,4409.0,4408.9,0.53164809]
[1757600886948,1e-08,4409.0,4408.9,0.53474917]
[1757600887153,1e-08,4409.0,4408.9,41.33474917]
[1757600887348,0.4841,4409.5,4408.9,41.33474917]
[1757600887551,0.4841,4409.5,4409.4,0.80717906]
[1757600887754,0.4841,4409.5,4409.4,1.34192823]
[1757600888055,0.4841,4409.5,4409.4,0.53474917]
[1757600888256,0.4841,4409.5,4409.4,1.34158058]
[1757600888457,0.4841,4409.5,4409.4,0.53474917]
[1757600888753,0.4841,4409.5,4409.4,1.34158058]
[1757600890359,0.4841,4409.5,4409.4,0.53474917]
[1757600890550,0.1402,4409.5,4409.4,4.53474917]
[1757600890756,0.136,4410.0,4409.6,0.40808]
[1757600890957,0.4799,4410.0,4409.7,1.5062312]
[1757600891157,0.3439,4409.9,4409.8,41.33474917]
[1757600891660,0.3439,4409.9,4409.8,41.09674917]
[1757600892564,4.805,4409.9,4409.8,4.917e-05]
[1757600893365,0.4611,4409.1,4409.0,40.8]
[1757600893556,0.805,4409.1,4409.0,40.8]
[1757600894062,0.5652,4408.8,4408.7,0.80596717]
[1757600894461,0.5652,4408.8,4408.7,41.60596717]
[1757600894659,0.3439,4408.8,4408.7,41.60596717]
[1757600895062,0.3439,4408.8,4408.7,40.8]
[1757600895261,0.4799,4409.0,4408.7,40.8]
[1757600895467,0.3439,4408.9,4408.8,0.8064485]
[1757600896765,0.805,4408.9,4408.8,1.0444485]
[1757600897065,0.3439,4408.8,4408.6,0.8064485]
[1757600897262,0.136,4408.5,4408.1,0.8064485]
[1757600897463,0.3439,4408.4,4408.2,40.8]
[1757600897664,0.136,4408.5,4408.2,40.8]
[1757600898064,0.3439,4408.4,4408.0,0.8064485]
[1757600898264,0.136,4408.5,4408.0,0.8064485]
[1757600898866,0.3439,4408.4,4408.0,0.8064485]
[1757600899165,0.4799,4409.0,4408.2,1.20948203]
[1757600899369,0.3439,4408.9,4408.7,0.80826184]
[1757600899571,0.3439,4408.9,4408.8,0.238]
[1757600899768,0.3439,4408.9,4408.8,1.04626184]
[1757600900171,0.3439,4408.9,4408.8,0.238]
[1757600900673,0.136,4409.0,4408.7,1.21239276]
[1757600900674,0.136,4409.0,4408.7,1.45039276]
[1757600901069,0.3439,4408.9,4408.8,40.8]
[1757600901974,0.3439,4408.9,4408.6,0.238]
[1757600902170,0.3439,4408.9,4408.6,1.86557885]
[1757600902369,0.3439,4408.9,4408.6,0.238]
[1757600902571,0.136,4409.0,4408.7,40.8]
[1757600902776,0.136,4409.0,4408.9,1.62348787]
[1757600903076,0.136,4409.0,4408.7,40.8]
[1757600903272,0.3439,4408.9,4408.7,40.8]
[1757600903469,0.136,4409.0,4408.7,40.8]
[1757600903470,0.136,4409.0,4408.7,42.83211915]
[1757600903674,0.4799,4409.0,4408.9,2.03211915]
[1757600903975,0.4799,4409.0,4408.9,2.27011915]
[1757600904572,0.3439,4409.4,4408.9,4.53240162]
[1757600904871,0.3439,4409.4,4409.2,2.03360506]
[1757600905069,0.3439,4409.4,4409.3,0.53240162]
[1757600905271,0.3439,4409.4,4409.3,0.52539475]
[1757600905870,0.3439,4409.4,4409.3,2.55899981]
[1757600907273,0.4799,4409.5,4409.3,0.52539475]
[1757600907474,0.4799,4409.5,4409.4,0.28739475]
[1757600908778,0.136,4409.5,4409.4,41.08739475]
[1757600908981,0.3389,4409.9,4409.4,45.49549475]
[1757600909170,0.3389,4409.9,4409.5,0.28739475]
[1757600909367,0.3389,4409.9,4409.6,0.93348475]
[1757600909572,0.136,4410.0,4409.7,0.28739475]
[1757600909777,0.3389,4409.9,4409.8,0.28739475]
[1757600909977,0.3389,4410.4,4409.8,0.52539475]
[1757600910178,0.3389,4410.4,4410.2,2.03306249]
[1757600910377,0.3389,4410.4,4410.3,41.32539475]
[1757600910874,0.3389,4410.4,4410.3,41.08739475]
[1757600911076,0.8025,4410.4,4410.3,0.28739475]
[1757600911473,0.3389,4410.4,4410.3,0.28739475]
[1757600911673,4.3389,4410.4,4410.3,0.28739475]
[1757600912077,4.3389,4410.4,4409.9,2.03306249]
[1757600912078,0.1445,4410.0,4409.9,2.03306249]
[1757600912282,0.4834,4410.0,4409.9,0.2763498]
[1757600912482,0.4834,4410.0,4409.9,41.0763498]
[1757600912874,0.4834,4410.0,4409.9,0.2763498]
[1757600913075,0.1445,4410.0,4409.5,2.27106249]
[1757600913271,0.4834,4410.0,4409.9,1.62650357]
[1757600915092,4.4834,4410.0,4409.6,0.17010357]
[1757600915380,0.3551,4410.0,4409.9,1.10064138]
[1757600915580,0.3551,4410.0,4409.9,0.37234138]
[1757600915581,0.091,4410.0,4409.9,0.37234138]
[1757600915780,0.091,4410.0,4409.9,0.34834138]
[1757600915983,32.665,4411.0,4410.0,0.1368]
[1757600916181,0.46473001,4410.9,4410.6,0.3483]
[1757600916486,0.238,4410.8,4410.5,0.1368]
[1757600917581,0.238,4410.7,4410.6,0.3483]
[1757600920288,0.238,4410.7,4410.6,1.16181114]
[1757600920889,0.238,4410.7,4410.6,0.3483]
[1757600921092,32.665,4411.0,4410.6,1.26881114]
[1757600921288,0.238,4410.9,4410.8,0.8036]
[1757600922088,0.238,4410.9,4410.8,1.61711114]
[1757600922394,32.665,4411.0,4410.9,0.3483]
[1757600922688,32.903,4411.0,4410.9,0.3483]
[1757600924186,36.903,4411.0,4410.9,0.3483]
[1757600927794,36.903,4411.0,4410.6,0.3483]
[1757600927992,32.903,4411.0,4410.6,0.3483]
[1757600928389,32.903,4411.0,4410.5,0.1368]
[1757600928584,4.0,4410.9,4410.5,0.1368]
[1757600928986,4.0,4410.9,4410.6,0.3483]
[1757600929286,4.0,4410.9,4410.5,0.1368]
[1757600929493,0.238,4410.8,4410.6,0.3483]
[1757600930094,32.665,4411.0,4410.6,0.3483]
[1757600930493,0.238,4410.9,4410.6,0.3483]
[1757600934393,32.665,4411.0,4410.6,0.3483]
[1757600934595,0.238,4410.8,4410.6,0.3483]
[1757600936097,0.238,4410.7,4410.6,0.3483]
[1757600937799,0.238,4410.7,4410.6,0.8103]
[1757600940498,4.238,4410.7,4410.6,0.3483]
[1757600940887,0.238,4410.7,4410.6,0.5765]
[1757600941088,0.238,4410.7,4410.6,0.8103]
[1757600941297,0.238,4410.7,4410.6,0.5765]
[1757600941695,0.238,4410.7,4410.6,0.8103]
[1757600942100,0.238,4410.7,4410.6,0.3483]
[1757600942603,0.238,4410.7,4410.6,0.5765]
[1757600942806,0.238,4410.7,4410.6,0.8103]
[1757600943097,32.665,4411.0,4410.9,0.8103]
[1757600943296,32.903,4411.0,4410.9,0.8103]
[1757600944707,32.665,4411.0,4410.9,0.8103]
[1757600944897,32.903,4411.0,4410.9,0.8103]
[1757600946692,0.238,4411.0,4410.9,0.8103]
[1757600946901,32.663,4412.3,4412.2,0.5765]
[1757600947101,33.40132776,4412.3,4412.2,0.5765]
[1757600947306,32.901,4412.3,4412.2,0.3483]
[1757600949508,32.901,4412.3,4412.2,0.8103]
[1757600951010,32.901,4412.3,4412.2,0.3483]
[1757600953314,36.901,4412.3,4412.1,0.3483]
[1757600953607,32.901,4412.3,4412.0,0.139]
[1757600954004,36.901,4412.3,4412.0,0.139]
[1757600954400,0.49973419,4412.2,4412.0,0.139]
[1757600954716,0.237,4412.1,4412.0,0.139]
[1757600955408,0.237,4412.1,4412.0,0.4873]
[1757600955612,0.237,4412.1,4411.5,0.139]
[1757600955915,0.50004373,4412.0,4411.5,0.139]
[1757600956113,0.73704373,4411.9,4411.5,0.139]
[1757600956316,0.237,4411.9,4411.5,0.139]
[1757600956816,0.50006862,4411.8,4411.0,0.139]
[1757600957113,0.237,4411.7,4411.0,0.139]
[1757600957310,0.73708069,4411.6,4411.0,0.139]
[1757600957501,0.50006415,4411.5,4410.0,0.139]
[1757600957706,0.73702481,4411.4,4410.2,0.3483]
[1757600957905,0.50002481,4411.3,4410.2,0.3483]
[1757600958106,0.237,4411.2,4410.5,0.4851]
[1757600959812,0.237,4411.2,4410.5,0.7133]
[1757600960017,0.237,4411.2,4411.0,0.3672]
[1757600960317,32.70246923,4412.3,4411.1,0.3483]
[1757600960515,0.73713448,4412.2,4411.5,0.4873]
[1757600960716,0.50013448,4412.1,4411.5,0.139]
[1757600961222,0.50013448,4412.1,4411.1,0.3483]
[1757600961420,0.22668,4412.0,4410.7,0.3483]
[1757600961616,0.73713448,4411.9,4410.7,0.3483]
[1757600961816,0.50013448,4411.8,4410.7,0.3483]
[1757600962321,0.50013448,4411.8,4410.7,0.5765]
[1757600962617,0.50013448,4411.8,4410.8,0.5765]
[1757600963320,0.50013448,4411.8,4410.8,0.2282]
[1757600963523,0.50013448,4411.8,4411.0,0.139]
[1757600963920,0.67804346,4411.8,4411.0,0.139]
[1757600964117,0.50013448,4411.7,4411.1,0.3483]
[1757600964419,0.50013448,4411.7,4411.1,0.5765]
[1757600964819,0.50013448,4411.7,4411.1,0.3483]
[1757600965021,0.50013448,4411.7,4411.5,0.139]
[1757600965222,0.50013448,4411.7,4411.6,0.5765]
[1757600965415,0.50013448,4411.7,4411.6,0.8103]
[1757600965615,0.73713448,4411.7,4411.6,0.8103]
[1757600966016,0.237,4411.7,4411.6,0.8103]
[1757600966725,32.70246923,4412.3,4411.6,0.8103]
[1757600967021,32.70246923,4412.3,4411.5,0.139]
[1757600967022,0.74167845,4412.2,4412.1,0.5765]
[1757600968219,0.237,4412.2,4412.1,0.8002]
[1757600971519,0.237,4412.2,4412.1,0.3483]
[1757600971922,0.237,4412.2,4412.1,0.592]
[1757600972223,0.237,4412.2,4412.1,0.8157]
[1757600973130,32.663,4412.3,4412.2,0.8221]
[1757600973425,32.9,4412.3,4412.2,0.8221]
[1757600974017,32.9,4412.3,4412.2,0.5984]
[1757600974219,32.9,4412.3,4412.2,0.8221]
[1757600977225,32.9,4412.3,4412.0,0.139]
[1757600977429,32.9,4412.3,4412.1,0.3547]
[1757600978122,32.9,4412.3,4412.0,0.139]
[1757600978333,32.9,4412.3,4412.2,0.3547]
[1757600978539,33.40467804,4412.3,4412.2,0.3547]
[1757600980334,33.40467804,4412.3,4412.2,0.8221]
[1757600980530,32.9,4412.3,4412.2,0.8221]
[1757600980732,33.40472108,4412.3,4412.2,0.8221]
[1757600982327,33.40472108,4412.3,4411.5,0.2437]
[1757600982531,0.4793,4411.6,4411.1,0.3547]
[1757600982735,0.2368,4411.2,4411.1,0.8221]
[1757600982932,0.4738,4411.2,4411.1,0.8221]
[1757600983127,0.7163,4411.2,4411.1,0.8221]
[1757600983528,1.0155,4411.2,4411.1,0.8221]
[1757600983829,0.7163,4411.2,4411.1,0.8221]
[1757600984028,0.4738,4411.2,4411.1,0.8221]
[1757600985736,0.237,4411.2,4411.1,0.8221]
[1757600986040,0.7785,4412.0,4411.9,0.2437]
[1757600986235,1.52162099,4412.0,4411.5,0.1358]
[1757600986534,0.7785,4411.6,4411.5,0.3547]
[1757600986728,1.0155,4411.6,4411.5,0.5984]
[1757600987437,1.0155,4411.6,4411.5,0.3547]
[1757600988336,1.20052453,4411.6,4411.5,0.3547]
[1757600988937,0.7163,4411.6,4411.5,0.7342]
[1757600989341,0.7163,4411.6,4411.5,0.9579]
[1757600989540,0.237,4411.6,4411.5,0.9579]
[1757600989835,32.8998,4412.3,4412.2,0.8221]
[1757600990041,33.64301338,4412.3,4412.2,0.8221]
[1757600990633,33.40621338,4412.3,4412.2,0.8221]
[1757600990839,33.64301338,4412.3,4412.2,0.8221]
[1757600993033,33.88551338,4412.3,4412.2,0.8221]
[1757600993738,33.40621338,4412.3,4411.5,0.1358]
[1757600993938,0.4793,4411.6,4411.5,0.9579]
[1757600994235,0.7163,4411.6,4411.5,0.9579]
[1757600994436,0.4738,4411.6,4411.5,0.9579]
[1757600994643,0.237,4411.6,4411.5,0.9579]
[1757600997044,0.4738,4411.6,4411.5,0.9579]
[1757600997243,0.237,4411.6,4411.5,0.9579]
[1757600997541,0.2364,4412.1,4412.0,0.1445]
[1757600997749,0.98209812,4412.1,4412.0,0.958]
[1757600998044,1.22239812,4412.1,4412.0,0.958]
[1757600998240,1.51519812,4412.1,4412.0,0.7259]
[1757600998440,1.51519812,4412.1,4411.6,0.348]
[1757600998641,1.0065,4412.1,4412.0,0.2334]
[1757600998849,1.51519135,4412.1,4412.0,0.348]
[1757600999747,0.74569135,4412.1,4412.0,0.958]
[1757601000444,0.98209135,4412.1,4412.0,0.958]
[1757601000946,1.51519135,4412.1,4411.5,0.4838]
[1757601001140,0.4767,4411.6,4411.5,0.7172]
[1757601001341,1.0065,4411.6,4411.1,0.348]
[1757601001848,1.0065,4411.6,4411.0,0.1358]
[1757601002043,1.0065,4411.6,4411.5,0.2334]
[1757601002044,0.7137,4411.6,4411.5,0.2334]
[1757601002251,0.7137,4411.6,4411.5,0.958]
[1757601003046,0.4734,4411.6,4411.5,0.958]
[1757601003351,33.1397,4412.3,4412.2,0.5814]
[1757601003647,33.88570476,4412.3,4412.2,0.8135]
[1757601004245,34.17850476,4412.3,4412.0,0.1445]
[1757601004446,0.7695,4411.7,4411.1,0.348]
[1757601004651,0.2364,4411.2,4411.1,0.8135]
[1757601004843,0.237,4411.2,4411.1,0.8135]
[1757601005043,0.7695,4412.1,4412.0,0.7259]
[1757601005339,1.51550812,4412.1,4412.0,0.7259]
[1757601005542,1.51550812,4412.1,4412.0,0.348]
[1757601005951,1.22270812,4412.1,4412.0,0.958]
[1757601006152,1.51550812,4412.1,4412.0,0.7259]
[1757601006853,1.22270812,4412.1,4412.0,0.7259]
[1757601007054,32.663,4412.3,4412.0,0.958]
[1757601007352,32.663,4412.3,4412.2,0.8135]
[1757601007547,32.9,4412.3,4412.2,0.8135]
[1757601009255,0.2928,4413.3,4412.3,0.348]
[1757601009559,0.98191448,4413.2,4413.1,0.8135]
[1757601009946,0.4734,4413.2,4413.1,0.8135]
[1757601010152,0.237,4413.2,4413.1,0.8135]
[1757601011754,0.7137,4413.2,4413.1,0.8135]
[1757601012349,0.4767,4413.2,4413.1,0.8135]
[1757601012554,0.2364,4413.6,4413.5,0.958]
[1757601012861,0.4734,4413.6,4413.5,0.958]
[1757601013151,0.7137,4413.6,4413.5,0.958]
[1757601013546,0.2928,4413.0,4412.9,0.348]
[1757601013749,1.0065,4413.0,4412.5,0.1445]
[1757601013946,0.4734,4413.0,4412.9,0.8135]
[1757601014958,0.237,4413.0,4412.9,0.8135]
[1757601015960,0.4734,4413.0,4412.9,0.8135]
[1757601016160,0.2364,4413.6,4413.5,0.958]
[1757601016457,0.4734,4413.6,4413.5,0.958]
[1757601016847,0.7137,4413.6,4413.5,0.958]
[1757601017052,1.0065,4413.6,4413.5,0.348]
[1757601017251,1.0065,4413.6,4412.5,0.1445]
[1757601017453,0.8088,4412.6,4412.5,0.2334]
[1757601017655,1.0458,4412.6,4412.5,0.2334]
[1757601017962,1.0458,4412.6,4412.0,0.1445]
[1757601018155,0.4734,4412.6,4412.5,0.61]
[1757601018655,0.237,4412.8,4412.5,4.83663]
[1757601018861,0.237,4412.7,4412.5,0.61]
[1757601019555,32.656,4413.7,4412.6,4.69212]
[1757601019556,0.237,4412.9,4412.6,4.69212]
[1757601019859,0.237,4413.0,4412.9,0.8135]
[1757601020061,32.656,4413.7,4413.0,0.4925]
[1757601020261,0.8055,4413.6,4413.5,0.8135]
[1757601021253,0.8088,4413.6,4413.5,0.8135]
[1757601021461,1.0458,4413.6,4413.1,0.348]
[1757601021762,1.0458,4413.6,4412.5,40.9445]
[1757601021763,0.8088,4413.1,4413.0,0.2334]
[1757601021961,1.0458,4413.1,4413.0,0.8135]
[1757601022161,0.4734,4413.1,4413.0,0.8135]
[1757601023962,33.2245,4413.7,4413.6,0.8135]
[1757601024158,33.4605,4413.7,4413.6,0.8135]
[1757601024466,33.1284,4413.7,4413.6,0.8135]
[1757601024766,33.4605,4413.7,4413.6,0.8135]
[1757601025068,32.892,4413.7,4413.6,0.8135]
[1757601026262,0.3321,4414.2,4413.7,0.348]
[1757601026464,0.8088,4414.2,4414.1,0.4655]
[1757601026662,1.0448,4414.2,4413.1,0.348]
[1757601026867,1.0448,4414.2,4413.2,0.22657]
[1757601027068,1.0448,4414.2,4414.1,0.2334]
[1757601027568,1.0448,4414.2,4413.6,0.348]
[1757601027880,0.8088,4414.2,4414.1,0.8187]
[1757601028168,1.0448,4414.2,4414.1,0.4582]
[1757601028361,1.0448,4414.2,4414.1,0.2352]
[1757601028571,1.0448,4414.2,4413.7,0.3605]
[1757601028766,0.2295,4413.7,4413.6,0.5957]
[1757601028971,0.8155,4413.7,4413.6,0.8187]
[1757601029267,0.236,4413.7,4413.6,0.8187]
[1757601030069,0.8155,4413.7,4413.6,0.8187]
[1757601030271,1.0332,4413.7,4413.6,0.4582]
[1757601030562,1.0332,4413.7,4413.6,0.2352]
[1757601031470,1.0332,4413.7,4413.2,0.3605]
[1757601031661,1.0332,4413.7,4412.8,0.8187]
[1757601031662,0.2295,4412.9,4412.8,0.8187]
[1757601032173,0.9282,4413.5,4413.4,0.4582]
[1757601032367,0.9282,4413.5,4412.7,0.3605]
[1757601035367,0.7972,4412.3,4412.2,0.2352]
[1757601035565,0.35,4411.2,4410.8,1.62045389]
[1757601035760,0.35,4411.2,4409.5,0.1357]
[1757601035761,0.4472,4410.7,4410.3,1.62045389]
[1757601035963,0.35,4410.9,4410.1,0.3605]
[1757601036363,0.35,4411.4,4410.8,0.4582]
[1757601036564,0.236,4411.6,4410.9,0.3605]
[1757601036758,0.236,4411.6,4410.5,0.1357]
[1757601036759,0.5795,4411.6,4411.5,0.4582]
[1757601036961,0.236,4411.7,4411.6,0.3605]
[1757601037172,0.236,4411.7,4411.6,0.8187]
[1757601037364,1.0332,4411.7,4411.1,0.3605]
[1757601037567,1.0332,4411.7,4410.6,0.3605]
[1757601038578,1.0332,4411.7,4411.6,0.2352]
[1757601038770,32.643,4411.9,4411.6,0.4582]
[1757601039065,32.643,4411.9,4411.0,0.1357]
[1757601039066,32.879,4411.9,4411.8,0.8187]
[1757601039273,33.6762,4411.9,4411.3,0.3605]
[1757601039470,33.3262,4411.9,4410.7,0.3605]
[1757601039670,0.35,4411.8,4410.7,0.3605]
[1757601039867,0.7972,4411.8,4411.7,0.2352]
[1757601040071,0.35,4412.2,4411.7,0.8187]
[1757601040269,0.35,4412.4,4412.1,0.3605]
[1757601040464,0.8155,4412.3,4412.2,0.4582]
[1757601040666,0.236,4412.3,4412.2,0.8187]
[1757601041271,0.4655,4412.3,4412.2,0.8187]